fUST/lending_fUST_20260419
["ID","MTS","AMOUNT","RATE_DAILY","PERIOD"]
[420821926,1776583843813,-322.629741,0.00016995,2]
[420821928,1776583843822,-322.629741,0.00016995,2]
[420821930,1776583843832,-322.629741,0.00016995,2]
[420821932,1776583843842,-362.580403,0.00016995,2]
[420821934,1776583843851,-322.629741,0.00016995,2]
[420821936,1776583843860,-362.580403,0.00016995,2]
[420821938,1776583843870,-362.580403,0.00016995,2]
[420821940,1776583843879,-66.21800444,0.00016995,2]
[420821942,1776583843891,-296.36239856,0.00016995,2]
[420821944,1776583843900,-362.580403,0.00016995,2]
[420821946,1776583843909,-362.580403,0.00016995,2]
[420821948,1776583843918,-362.580403,0.00016995,2]
[420821950,1776583843927,-362.580403,0.00016995,2]
[420821951,1776583843937,-244.045669,0.00016995,2]
[420821954,1776583843946,-362.580403,0.00016995,2]
[420821956,1776583843956,-244.045669,0.00016995,2]
[420821958,1776583843965,-244.045669,0.00016995,2]
[420821961,1776583843975,-244.045669,0.00016995,2]
[420821962,1776583843984,-362.580403,0.00016995,2]
[420821964,1776583843994,-244.045669,0.00016995,2]
[420821967,1776583844005,-362.580403,0.00016995,2]
[420821969,1776583844015,-362.580403,0.00016995,2]
[420821971,1776583844024,-244.045669,0.00016995,2]
[420821972,1776583844033,-244.045669,0.00016995,2]
[420821974,1776583844043,-244.045669,0.00016995,2]
[420821976,1776583844052,-244.045669,0.00016995,2]
[420821978,1776583844062,-244.045669,0.00016995,2]
[420821980,1776583844071,-244.045669,0.00016995,2]
[420821982,1776583844081,-322.629741,0.00016995,2]
[420821984,1776583844090,-322.629741,0.00016995,2]
[420821986,1776583844099,-322.629741,0.00016995,2]
[420821988,1776583844109,-322.629741,0.00016995,2]
[420821990,1776583844118,-322.629741,0.00016995,2]
[420821992,1776583844127,-134.00276404,0.00016995,2]
[420822000,1776583844283,-188.62697696,0.00016995,2]
[420822001,1776583844292,-211.54977197,0.00016995,2]
[420822002,1776583844321,-111.07996903,0.00016995,2]
[420822004,1776583844331,-191.54143096,0.00016995,2]
[420822005,1776583844342,-131.08831004,0.00016995,2]
[420822007,1776583844352,-297.458208,0.00016995,2]
[420822008,1776583844361,-297.458208,0.00016995,2]
[420822009,1776583844370,-297.458208,0.00016995,2]
[420822010,1776583844379,-297.458208,0.00016995,2]
[420822011,1776583844389,-297.458208,0.00016995,2]
[420822012,1776583844398,-297.458208,0.00016995,2]
[420822013,1776583844407,-297.458208,0.00016995,2]
[420822014,1776583844416,-297.458208,0.00016995,2]
[420822015,1776583844425,-297.458208,0.00016995,2]
[420822016,1776583844435,-297.458208,0.00016995,2]
[420822017,1776583844443,-297.458208,0.00016995,2]
[420822018,1776583844453,-297.458208,0.00016995,2]
[420822019,1776583844462,-151.0,0.00016995,2]
[420822020,1776583844471,-151.0,0.00016995,2]
[420822021,1776583844481,-151.0,0.00016995,2]
[420822022,1776583844490,-151.0,0.00016995,2]
[420822023,1776583844499,-151.0,0.00016995,2]
[420822024,1776583844508,-131.47897026,0.00016995,2]
[420822036,1776583848272,-5000.0,0.00016825,2]
[420822037,1776583848282,-19.52102974,0.00016995,2]
[420822038,1776583848292,-155.572937,0.00016995,2]
[420822039,1776583848301,-149.374406,0.00016995,2]
[420822040,1776583848332,-6.198531,0.00016995,2]
[420822041,1776583848341,-155.572937,0.00016995,2]
[420822042,1776583848351,-155.572937,0.00016995,2]
[420822043,1776583848360,-155.572937,0.00016995,2]
[420822044,1776583848369,-155.572937,0.00016995,2]
[420822045,1776583848379,-155.572937,0.00016995,2]
[420822046,1776583848388,-155.572937,0.00016995,2]
[420822047,1776583848397,-155.572937,0.00016995,2]
[420822048,1776583848407,-155.572937,0.00016995,2]
[420822049,1776583848416,-155.572937,0.00016995,2]
[420822050,1776583848425,-155.57293,0.00016995,2]
[420822051,1776583848435,-198.647676,0.00016995,2]
[420822052,1776583848445,-198.647676,0.00016995,2]
[420822053,1776583848454,-198.647676,0.00016995,2]
[420822054,1776583848464,-198.647676,0.00016995,2]
[420822055,1776583848473,-198.647676,0.00016995,2]
[420822056,1776583848483,-198.647676,0.00016995,2]
[420822057,1776583848493,-198.647676,0.00016995,2]
[420822058,1776583848502,-198.647676,0.00016995,2]
[420822059,1776583848512,-307.165232,0.00016995,2]
[420822060,1776583848521,-198.647676,0.00016995,2]
[420822061,1776583848532,-307.165232,0.00016995,2]
[420822062,1776583848542,-307.165232,0.00016995,2]
[420822063,1776583848551,-198.647676,0.00016995,2]
[420822064,1776583848561,-198.647676,0.00016995,2]
[420822065,1776583848571,-198.647684,0.00016995,2]
[420822066,1776583848580,-307.165232,0.00016995,2]
[420822067,1776583848589,-307.165232,0.00016995,2]
[420822068,1776583848598,-307.165232,0.00016995,2]
[420822069,1776583848608,-307.165232,0.00016995,2]
[420822070,1776583848617,-307.165232,0.00016995,2]
[420822071,1776583848627,-307.165232,0.00016995,2]
[420822072,1776583848636,-307.165232,0.00016995,2]
[420822073,1776583848645,-307.165232,0.00016995,2]
[420822074,1776583848658,-307.165242,0.00016995,2]
[420822075,1776583848667,-151.0,0.00016995,2]
[420822076,1776583848676,-151.0,0.00016995,2]
[420822077,1776583848686,-199.756159,0.00016995,2]
[420822078,1776583848695,-151.0,0.00016995,2]
[420822079,1776583848705,-151.0,0.00016995,2]
[420822080,1776583848714,-151.0,0.00016995,2]
[420822081,1776583848724,-151.0,0.00016995,2]
[420822082,1776583848734,-151.0,0.00016995,2]
[420822083,1776583848743,-151.0,0.00016995,2]
[420822084,1776583848752,-1361.04,0.00016995,2]
[420822085,1776583848762,-1361.04,0.00016995,2]
[420822086,1776583848771,-1361.04,0.00016995,2]
[420822087,1776583848781,-1361.04,0.00016995,2]
[420822088,1776583848791,-1361.04,0.00016995,2]
[420822089,1776583848800,-1361.04,0.00016995,2]
[420822090,1776583848811,-1361.04,0.00016995,2]
[420822091,1776583848820,-1361.04,0.00016995,2]
[420822092,1776583848829,-1361.04,0.00016995,2]
[420822093,1776583848839,-1361.04,0.00016995,2]
[420822094,1776583848849,-1361.04,0.00016995,2]
[420822095,1776583848858,-1361.04,0.00016995,2]
[420822096,1776583848868,-1361.04,0.00016995,2]
[420822097,1776583848877,-1361.04,0.00016995,2]
[420822098,1776583848886,-1361.04,0.00016995,2]
[420822099,1776583848896,-1361.04,0.00016995,2]
[420822100,1776583848904,-1361.04,0.00016995,2]
[420822101,1776583848914,-1361.04,0.00016995,2]
[420822102,1776583848923,-1361.04,0.00016995,2]
[420822103,1776583848932,-1361.04,0.00016995,2]
[420822104,1776583848941,-1361.04,0.00016995,2]
[420822105,1776583848951,-1361.04,0.00016995,2]
[420822106,1776583848960,-1361.04,0.00016995,2]
[420822107,1776583848969,-1361.04,0.00016995,2]
[420822108,1776583848979,-1361.04,0.00016995,2]
[420822109,1776583848989,-1361.04,0.00016995,2]
[420822110,1776583848998,-1361.04,0.00016995,2]
[420822111,1776583849007,-1361.04,0.00016995,2]
[420822112,1776583849016,-1361.04,0.00016995,2]
[420822113,1776583849026,-1361.04,0.00016995,2]
[420822114,1776583849035,-1361.04,0.00016995,2]
[420822115,1776583849045,-1361.04,0.00016995,2]
[420822116,1776583849054,-1361.04,0.00016995,2]
[420822117,1776583849063,-1361.04,0.00016995,2]
[420822118,1776583849072,-1361.04,0.00016995,2]
[420822119,1776583849081,-1410.71,0.00016995,2]
[420822120,1776583849091,-31875.89600179,0.00017,2]
[420822121,1776583849107,-17703.52406791,0.00017,2]
[420822122,1776583849118,-3480.57336969,0.00017,2]
[420822362,1776585031757,-2440.17514338,0.00012386,2]
[420822363,1776585031811,-1006.81783792,0.00012386,2]
[420822364,1776585031823,-1553.0070187,0.00012386,2]
[420822365,1776585031832,-291.0,0.00012511,2]
[420822366,1776585031841,-300.0,0.00012511,2]
[420822367,1776585031850,-300.0,0.00012511,2]
[420822368,1776585031860,-300.0,0.00012511,2]
[420822369,1776585031869,-1200.0,0.00012511,2]
[420822370,1776585031878,-1608.24022976,0.00012512,2]
[420822371,1776585031889,-3391.75977024,0.00012512,2]
[420822373,1776585031901,-597.0,0.00012512,2]
[420822375,1776585031910,-1618.42238832,0.00012638,2]
[420822376,1776585031921,-430.852006,0.00012638,2]
[420822386,1776585038093,-2115.26217515,0.00012638,2]
[420822387,1776585038103,-150.0,0.00012962,2]
[420822388,1776585038114,-300.0,0.00013421,2]
[420822389,1776585038123,-300.0,0.00013421,2]
[420822390,1776585038133,-300.0,0.00013421,2]
[420822391,1776585038142,-300.0,0.00013421,2]
[420822392,1776585038151,-300.0,0.00013421,2]
[420822393,1776585038162,-300.0,0.00013421,2]
[420822394,1776585038172,-300.0,0.00013421,2]
[420822395,1776585038181,-300.0,0.00013421,2]
[420822396,1776585038191,-300.0,0.00013421,2]
[420822397,1776585038200,-300.0,0.00013421,2]
[420822398,1776585038210,-300.0,0.00013421,2]
[420822399,1776585038220,-300.0,0.00013421,2]
[420822400,1776585038229,-300.0,0.00013421,2]
[420822401,1776585038240,-300.0,0.00013421,2]
[420822402,1776585038249,-300.0,0.00013421,2]
[420822403,1776585038259,-290.5328668,0.00013629,2]
[420822404,1776585038269,-1000.0,0.00013699,2]
[420822405,1776585038278,-420.0,0.00013727,2]
[420822406,1776585038288,-1603.0,0.00013762,2]
[420822407,1776585038298,-172.88,0.000141,2]
[420822408,1776585038308,-1000.0,0.00014308,2]
[420822409,1776585038318,-177.0,0.00014962,2]
[420822410,1776585038328,-484.0,0.00015062,2]
[420822411,1776585038338,-569.1298058,0.00015829,2]
[420822412,1776585038348,-160.0,0.00016592,2]
[420822413,1776585038358,-473.77002385,0.000167,2]
[420822414,1776585038367,-990.54349378,0.000167,2]
[420822415,1776585038376,-1095.96778606,0.000167,2]
[420822416,1776585038386,-292.80188112,0.00016773,2]
[420822417,1776585038395,-456.4546049,0.00016892,2]
[420822418,1776585038406,-500.0,0.00016893,2]
[420822419,1776585038415,-500.0,0.00016893,2]
[420822420,1776585038424,-500.0,0.00016893,2]
[420822421,1776585038434,-500.0,0.00016893,2]
[420822422,1776585038443,-500.0,0.00016893,2]
[420822423,1776585038452,-500.0,0.00016893,2]
[420822424,1776585038462,-315.58262516,0.00016893,2]
[420822425,1776585038471,-500.0,0.00016893,2]
[420822426,1776585038481,-500.0,0.00016893,2]
[420822427,1776585038491,-500.0,0.00016893,2]
[420822428,1776585038500,-500.0,0.00016893,2]
[420822429,1776585038509,-500.0,0.00016893,2]
[420822430,1776585038519,-500.0,0.00016893,2]
[420822431,1776585038531,-500.0,0.00016893,2]
[420822432,1776585038540,-299.25817086,0.00016893,2]
[420822433,1776585038550,-500.0,0.00016893,2]
[420822434,1776585038559,-600.0,0.00016893,2]
[420822435,1776585038569,-9861.60039101,0.00016894,2]
[420822445,1776585040359,-1197.10362736,0.00016894,2]
[420822446,1776585040370,-10268.88808827,0.00016894,2]
[420822447,1776585040413,-6718.501097,0.00016894,2]
[420822448,1776585040425,-623.8679506,0.00016894,2]
[420822449,1776585040436,-1200.36558608,0.00016894,2]
[420822482,1776585046238,-5000.0,0.00016725,2]
[420822483,1776585046247,-84735.56773177,0.00016894,2]
[420822497,1776585046414,-6168.10956112,0.00016894,2]
[420822590,1776585047119,-528.0,0.00016725,2]
[420822592,1776585047129,-36170.68597347,0.00016894,2]
[420822595,1776585047140,-3540.31786437,0.00016894,2]
[420822599,1776585047173,-10380.03185489,0.00016894,2]
[420822601,1776585047185,-1771.49898391,0.00016894,2]
[420822603,1776585047196,-1040.29697163,0.00016894,2]
[420822606,1776585047208,-7854.30538363,0.00016894,2]
[420822607,1776585047230,-9742.05342553,0.00016894,2]
[420822608,1776585047241,-400.0,0.00016894,2]
[420822780,1776586232127,-1117.43519046,7.082e-05,2]
[420822786,1776586232181,-1163.26236751,7.082e-05,2]
[420822788,1776586232192,-712.65527502,7.082e-05,2]
[420822793,1776586232235,-1215.01772896,7.082e-05,2]
[420822987,1776586238424,-791.62943805,7.082e-05,2]
[420822988,1776586238433,-199.09759817,7.154e-05,2]
[420822989,1776586238445,-3267.62312143,7.154e-05,2]
[420822990,1776586238456,-1533.2792804,7.154e-05,2]
[420822991,1776586238465,-300.0,7.226e-05,2]
[420822992,1776586238475,-518.0,7.227e-05,2]
[420822993,1776586238484,-150.0,7.264e-05,2]
[420822994,1776586238494,-5069.05747332,7.6e-05,2]
[420822995,1776586238503,-300.0,7.751e-05,2]
[420822996,1776586238512,-300.0,7.751e-05,2]
[420822997,1776586238522,-300.0,7.751e-05,2]
[420822998,1776586238532,-134.88288844,7.751e-05,2]
[420822999,1776586238549,-165.11711156,7.751e-05,2]
[420823000,1776586238559,-300.0,7.751e-05,2]
[420823001,1776586238568,-300.0,7.751e-05,2]
[420823002,1776586238578,-300.0,7.751e-05,2]
[420823003,1776586238587,-300.0,7.751e-05,2]
[420823004,1776586238597,-300.0,7.751e-05,2]
[420823005,1776586238606,-300.0,7.751e-05,2]
[420823006,1776586238616,-300.0,7.751e-05,2]
[420823007,1776586238625,-300.0,7.751e-05,2]
[420823008,1776586238634,-300.0,7.751e-05,2]
[420823009,1776586238644,-300.0,7.751e-05,2]
[420823010,1776586238653,-300.0,7.751e-05,2]
[420823011,1776586238663,-600.0,7.905e-05,2]
[420823012,1776586238672,-384.59064479,8.696e-05,2]
[420823049,1776586240509,-335.40935521,8.696e-05,2]
[420823051,1776586240519,-177.0,9.264e-05,2]
[420823053,1776586240529,-864.0,9.565e-05,2]
[420823055,1776586240538,-541.45017147,0.00010522,2]
[420823057,1776586240549,-458.54982853,0.00010522,2]
[420823059,1776586240558,-204.0,0.00011264,2]
[420823061,1776586240567,-4973.19171931,0.00011461,2]
[420823062,1776586240579,-772.73702623,0.00011461,2]
[420823064,1776586240616,-2251.74905886,0.00011461,2]
[420823065,1776586240625,-215.7016985,0.00011574,2]
[420823085,1776586243467,-5000.0,8.609e-05,2]
[420823086,1776586243476,-784.2983015,0.00011574,2]
[420823087,1776586243485,-244.0,0.00011574,2]
[420823088,1776586243494,-1000.0,0.00012731,2]
[420823089,1776586243503,-492.0,0.00012731,2]
[420823090,1776586243512,-256.20164598,0.000129,2]
[420823091,1776586243521,-500.0,0.00013024,2]
[420823092,1776586243531,-500.0,0.00013024,2]
[420823093,1776586243540,-500.0,0.00013024,2]
[420823094,1776586243549,-362.02851164,0.00013233,14]
[420823095,1776586243558,-231.0,0.00013264,2]
[420823096,1776586243568,-130.47154088,0.00013299,2]
[420823111,1776586246359,-125.73010507,0.00013299,2]
[420823113,1776586246368,-160.0,0.00013526,2]
[420823114,1776586246379,-1000.0,0.00013699,2]
[420823115,1776586246389,-1000.0,0.00014004,2]
[420823116,1776586246400,-791.0,0.00014004,2]
[420823117,1776586246410,-2199.326134,0.00014461,2]
[420823118,1776586246420,-163.052668,0.00015068,2]
[420823119,1776586246431,-256.20164595,0.00015124,2]
[420823120,1776586246440,-258.0,0.00015264,2]
[420823121,1776586246449,-780.59982496,0.00015405,2]
[420823122,1776586246460,-219.40017504,0.00015405,2]
[420823123,1776586246469,-1000.0,0.00015405,2]
[420823124,1776586246478,-151.4003602,0.00016074,2]
[420823125,1776586246488,-2428.71500046,0.00016402,2]
[420823126,1776586246497,-537.6845,0.00016402,2]
[420823127,1776586246507,-1476.19375658,0.00016402,2]
[420823128,1776586246516,-537.6845,0.00016402,2]
[420823129,1776586246525,-445.202766,0.00016402,2]
[420823130,1776586246535,-2150.738,0.00016402,2]
[420823131,1776586246544,-557.5788265,0.00016457,2]
[420823132,1776586246553,-578.20924308,0.00016512,2]
[420823133,1776586246562,-599.60298507,0.00016567,2]
[420823134,1776586246572,-938.51467326,0.00016594,2]
[420823135,1776586246580,-621.78829552,0.00016622,2]
[420823136,1776586246590,-6585.8955165,0.00016632,2]
[420823137,1776586246599,-500.0,0.00016672,2]
[420823138,1776586246610,-236.11919979,0.00016672,2]
[420823139,1776586246619,-500.0,0.00016672,2]
[420823140,1776586246629,-326.26416366,0.00016672,2]
[420823141,1776586246639,-500.0,0.00016672,2]
[420823142,1776586246651,-500.0,0.00016672,2]
[420823143,1776586246661,-500.0,0.00016672,2]
[420823144,1776586246672,-500.0,0.00016672,2]
[420823145,1776586246682,-500.0,0.00016672,2]
[420823146,1776586246691,-500.0,0.00016672,2]
[420823147,1776586246699,-500.0,0.00016672,2]
[420823148,1776586246709,-500.0,0.00016672,2]
[420823150,1776586246720,-500.0,0.00016672,2]
[420823151,1776586246729,-516.00087342,0.00016672,2]
[420823152,1776586246738,-385.96062041,0.00016672,2]
[420823153,1776586246748,-500.0,0.00016673,2]
[420823154,1776586246757,-505.23793997,0.00016673,2]
[420823155,1776586246766,-511.81429123,0.00016673,2]
[420823156,1776586246775,-500.0,0.00016673,2]
[420823157,1776586246784,-500.0,0.00016673,2]
[420823158,1776586246793,-500.0,0.00016673,2]
[420823159,1776586246803,-500.0,0.00016673,2]
[420823160,1776586246812,-500.248489,0.00016673,2]
[420823161,1776586246821,-644.79446246,0.00016677,2]
[420823162,1776586246830,-348.67883362,0.00016692,2]
[420823163,1776586246839,-500.0,0.00016692,2]
[420823164,1776586246849,-500.0,0.00016692,2]
[420823165,1776586246858,-600.0,0.00016692,2]
[420823166,1776586246867,-500.0,0.00016692,2]
[420823167,1776586246876,-5175.66790048,0.00016693,2]
[420823168,1776586246889,-57475.22275115,0.00016693,2]
[420823169,1776586246903,-6061.9078761,0.00016693,2]
[420823170,1776586246932,-5434.08732149,0.00016693,2]
[420823192,1776586948076,4051.86982299,0.00024483,120]
[420823238,1776587308338,-1000.0,8.548e-05,2]
[420823239,1776587309465,-1000.0,8.548e-05,2]
[420823240,1776587310327,-1000.0,8.548e-05,2]
[420823241,1776587310662,-1000.0,8.548e-05,2]
[420823242,1776587311007,-1000.0,8.548e-05,2]
[420823243,1776587312331,-1000.0,8.634e-05,2]
[420823244,1776587313369,-1000.0,8.634e-05,2]
[420823245,1776587314322,-1000.0,8.634e-05,2]
[420823246,1776587315347,-1000.0,8.634e-05,2]
[420823247,1776587317276,-1000.0,8.634e-05,2]
[420823248,1776587325140,-150.0,8.72e-05,2]
[420823249,1776587325165,-300.0,8.806e-05,2]
[420823250,1776587325187,-300.0,8.807e-05,2]
[420823251,1776587325212,-352.0,8.808e-05,2]
[420823290,1776587440436,-1200.0,8.546e-05,2]
[420823291,1776587440446,-1589.73055007,8.547e-05,2]
[420823292,1776587440491,-2506.58709964,8.547e-05,2]
[420823295,1776587440500,-226.0,8.547e-05,2]
[420823297,1776587440510,-300.0,8.632e-05,2]
[420823298,1776587440520,-1328.89017302,8.633e-05,2]
[420823300,1776587440759,-3671.10982698,8.633e-05,2]
[420823301,1776587440768,-5000.0,8.72e-05,2]
[420823302,1776587440778,-503.0,8.806e-05,2]
[420823303,1776587440787,-300.0,9.353e-05,2]
[420823304,1776587440798,-1680.0,9.401e-05,2]
[420823305,1776587440807,-420.0,9.495e-05,2]
[420823306,1776587440816,-1008.51822861,0.0001,7]
[420823307,1776587440826,-2900.0,0.0001,2]
[420823308,1776587440836,-632.0,0.00010341,2]
[420823309,1776587440845,-587.0,0.00010445,2]
[420823310,1776587440854,-296.62197707,0.00010659,2]
[420823311,1776587440865,-177.0,0.0001072,2]
[420823312,1776587440874,-523.0,0.00011489,2]
[420823313,1776587440883,-679.970363,0.00011653,2]
[420823314,1776587440892,-2501.7289033,0.00011774,2]
[420823315,1776587440902,-679.970363,0.00012144,2]
[420823316,1776587440911,-679.970363,0.00012634,2]
[420823317,1776587440920,-204.0,0.0001272,2]
[420823318,1776587440930,-679.970363,0.00013125,2]
[420823319,1776587440939,-300.0,0.00013133,2]
[420823320,1776587440948,-679.970363,0.00013615,2]
[420823321,1776587440957,-1000.0,0.00013699,2]
[420823322,1776587440966,-1000.0,0.00013699,2]
[420823323,1776587440975,-274.7936419,0.00014006,2]
[420823324,1776587440984,-679.970363,0.00014106,2]
[420823325,1776587440993,-231.0,0.0001472,2]
[420823326,1776587441003,-546.27150028,0.00015338,2]
[420823327,1776587441014,-160.0,0.00015458,2]
[420823328,1776587441024,-274.79364185,0.00015488,2]
[420823329,1776587441034,-500.0,0.00015999,2]
[420823330,1776587441044,-500.0,0.00015999,2]
[420823331,1776587441054,-500.0,0.00015999,2]
[420823332,1776587441063,-500.0,0.00015999,2]
[420823333,1776587441072,-500.0,0.00015999,2]
[420823334,1776587441081,-500.0,0.00015999,2]
[420823335,1776587441091,-203.8536002,0.00015999,2]
[420823336,1776587441101,-500.0,0.00015999,2]
[420823337,1776587441110,-500.0,0.00015999,2]
[420823338,1776587441119,-500.0,0.00015999,2]
[420823339,1776587441127,-500.0,0.00015999,2]
[420823340,1776587441138,-500.0,0.00015999,2]
[420823341,1776587441147,-500.0,0.00015999,2]
[420823342,1776587441159,-500.0,0.00015999,2]
[420823343,1776587441168,-500.0,0.00015999,2]
[420823344,1776587441176,-500.0,0.00015999,2]
[420823345,1776587441186,-500.0,0.00015999,2]
[420823346,1776587441195,-500.0,0.00015999,2]
[420823347,1776587441204,-500.0,0.00015999,2]
[420823348,1776587441215,-500.0,0.00015999,2]
[420823349,1776587441224,-500.0,0.00015999,2]
[420823350,1776587441234,-500.0,0.00015999,2]
[420823351,1776587441243,-500.0,0.00015999,2]
[420823352,1776587441252,-500.0,0.00015999,2]
[420823353,1776587441261,-313.51592305,0.00015999,2]
[420823354,1776587441271,-500.0,0.00015999,2]
[420823355,1776587441279,-500.0,0.00015999,2]
[420823356,1776587441288,-500.0,0.00015999,2]
[420823357,1776587441297,-500.0,0.00015999,2]
[420823358,1776587441306,-489.07734555,0.00015999,2]
[420823359,1776587441315,-500.0,0.00015999,2]
[420823360,1776587441324,-500.0,0.00015999,2]
[420823361,1776587441333,-500.0,0.00015999,2]
[420823362,1776587441342,-500.0,0.00015999,2]
[420823363,1776587441351,-500.0,0.00015999,2]
[420823364,1776587441360,-284.90370695,0.00015999,2]
[420823365,1776587441369,-500.0,0.00015999,2]
[420823366,1776587441378,-500.0,0.00015999,2]
[420823367,1776587441387,-45979.0,0.00016,5]
[420823368,1776587441396,-455.6505543,0.00016075,2]
[420823369,1776587441405,-537.6845,0.00016269,2]
[420823370,1776587441415,-2150.738,0.00016269,2]
[420823371,1776587441424,-500.0,0.00016273,2]
[420823372,1776587441433,-557.5788265,0.00016324,2]
[420823373,1776587441442,-578.20924308,0.00016379,2]
[420823374,1776587441451,-5000.0,0.000164,2]
[420823375,1776587441461,-599.60298507,0.00016434,2]
[420823376,1776587441470,-501.31101176,0.00016473,2]
[420823377,1776587441479,-538.0403771,0.00016473,2]
[420823378,1776587441488,-500.0,0.00016473,2]
[420823379,1776587441498,-504.14884301,0.00016473,2]
[420823380,1776587441507,-265.85854855,0.00016473,2]
[420823381,1776587441516,-500.97949159,0.00016473,2]
[420823382,1776587441526,-500.0,0.00016473,2]
[420823383,1776587441535,-500.55946545,0.00016473,2]
[420823384,1776587441544,-500.0,0.00016473,2]
[420823385,1776587441554,-234.99733493,0.00016473,2]
[420823386,1776587441563,-315.31191956,0.00016473,2]
[420823387,1776587441572,-504.62449569,0.00016473,2]
[420823388,1776587441581,-502.0364083,0.00016473,2]
[420823389,1776587441591,-500.0,0.00016473,2]
[420823390,1776587441600,-503.82690547,0.00016473,2]
[420823391,1776587441609,-251.36108959,0.00016473,2]
[420823392,1776587441618,-500.0,0.00016473,2]
[420823393,1776587441627,-506.00957103,0.00016473,2]
[420823394,1776587441637,-502.15699908,0.00016473,2]
[420823395,1776587441646,-502.69739404,0.00016473,2]
[420823396,1776587441655,-514.96040571,0.00016473,2]
[420823397,1776587441664,-503.4150966,0.00016473,2]
[420823398,1776587441673,-445.202766,0.00016483,2]
[420823399,1776587441683,-537.6845,0.00016483,2]
[420823400,1776587441691,-621.78829552,0.00016489,2]
[420823401,1776587441701,-350.16080459,0.00016492,2]
[420823402,1776587441709,-500.0,0.00016492,2]
[420823403,1776587441719,-500.0,0.00016492,2]
[420823404,1776587441728,-500.0,0.00016492,2]
[420823405,1776587441737,-500.0,0.00016492,2]
[420823406,1776587441747,-500.0,0.00016492,2]
[420823407,1776587441755,-500.0,0.00016492,2]
[420823408,1776587441764,-500.0,0.00016492,2]
[420823409,1776587441774,-444.72407992,0.00016492,2]
[420823410,1776587441783,-500.0,0.00016492,2]
[420823411,1776587441792,-500.0,0.00016492,2]
[420823412,1776587441801,-500.0,0.00016492,2]
[420823413,1776587441810,-500.0,0.00016492,2]
[420823414,1776587441820,-500.0,0.00016492,2]
[420823415,1776587441831,-500.0,0.00016492,2]
[420823416,1776587441840,-500.0,0.00016492,2]
[420823417,1776587441849,-550.0,0.00016492,2]
[420823418,1776587441858,-500.0,0.00016492,2]
[420823419,1776587441867,-500.0,0.00016492,2]
[420823420,1776587441876,-500.0,0.00016492,2]
[420823421,1776587441885,-500.0,0.00016492,2]
[420823422,1776587441894,-500.0,0.00016492,2]
[420823423,1776587441903,-500.0,0.00016492,2]
[420823424,1776587441912,-1394108.25864504,0.00016493,2]
[420823425,1776587442167,-1000.0,0.00016493,2]
[420823469,1776587446638,-170.63903149,0.00015975,2]
[420823471,1776587446649,-170.63903149,0.00016393,2]
[420823473,1776587446658,-6657.88956776,0.00016493,2]
[420823480,1776587447011,-7832.30966814,0.00016493,2]
[420823481,1776587447024,-38484.61400128,0.00016493,2]
[420823482,1776587447033,-870.57,0.00016493,2]
[420823483,1776587447043,-870.57,0.00016493,2]
[420823484,1776587447053,-870.57,0.00016493,2]
[420823485,1776587447062,-870.57,0.00016493,2]
[420823486,1776587447071,-870.57,0.00016493,2]
[420823487,1776587447080,-870.57,0.00016493,2]
[420823488,1776587447089,-870.57,0.00016493,2]
[420823489,1776587447099,-870.57,0.00016493,2]
[420823490,1776587447107,-870.57,0.00016493,2]
[420823491,1776587447117,-870.57,0.00016493,2]
[420823492,1776587447127,-870.57,0.00016493,2]
[420823493,1776587447139,-870.57,0.00016493,2]
[420823494,1776587447148,-870.57,0.00016493,2]
[420823495,1776587447157,-870.57,0.00016493,2]